bitfinex/quotes_SOLUSD_20250731
["timestamp","ask_amount","ask_price","bid_price","bid_amount"]
[1753991972861,0.71298197,175.32,175.29,7.46330775]
[1753991973069,0.71298197,175.32,175.31,6.77330775]
[1753991973366,0.71290065,175.34,175.31,0.69]
[1753991973545,6.41620515,175.34,175.3,6.77330775]
[1753991973745,6.41620515,175.34,175.3,7.46330775]
[1753991974269,6.77330775,175.35,175.33,6.77330775]
[1753991974270,0.71285999,175.35,175.33,6.77330775]
[1753991974572,0.74277869,175.37,175.34,7.45330775]
[1753991974743,0.74277869,175.37,175.32,6.77330775]
[1753991974744,0.74277869,175.37,175.36,6.77330775]
[1753991974947,0.74277869,175.37,175.35,7.45330775]
[1753991975143,0.74277869,175.37,175.36,6.77330775]
[1753991975345,0.74277869,175.37,175.36,7.45330775]
[1753991975346,0.03,175.37,175.36,7.45330775]
[1753991976879,0.03,175.37,175.35,41.3]
[1753991977045,0.03,175.37,175.36,11.0283018]
[1753991977747,0.03,175.37,175.36,17.41085654]
[1753991978377,0.2,175.38,175.36,17.70074123]
[1753991978667,0.2,175.42,175.36,17.70074123]
[1753991978668,0.2,175.42,175.37,54.49298577]
[1753991978867,0.2,175.42,175.41,11.0283018]
[1753991979044,0.2,175.42,175.41,52.3283018]
[1753991979367,0.2,175.42,175.41,53.0083018]
[1753991979672,0.2,175.42,175.41,58.70923105]
[1753991980555,0.2,175.42,175.41,17.40923105]
[1753991980771,0.2,175.42,175.41,58.70923105]
[1753991980958,0.2,175.42,175.41,17.40923105]
[1753991981169,0.2,175.42,175.41,58.70923105]
[1753991982843,0.2,175.42,175.41,17.40923105]
[1753991983049,0.2,175.42,175.41,58.70923105]
[1753991983251,0.2,175.42,175.41,75.49391502]
[1753991983459,0.03,175.46,175.45,38.84128757]
[1753991983689,0.03,175.49,175.48,42.78468397]
[1753991983965,0.03,175.53,175.48,53.81298577]
[1753991984146,0.03,175.53,175.5,11.0283018]
[1753991984871,0.03,175.53,175.5,34.19099146]
[1753991985041,0.03,175.53,175.52,42.78468397]
[1753991985246,0.03,175.53,175.52,35.1]
[1753991985449,0.03,175.53,175.52,87.4083018]
[1753991986269,0.03,175.53,175.52,88.0883018]
[1753991986777,0.03,175.53,175.52,78.9883018]
[1753991987289,0.03,175.53,175.52,37.7083018]
[1753991987447,0.03,175.53,175.52,84.68565822]
[1753991987650,0.03,175.53,175.52,78.9883018]
[1753991987954,0.68,175.53,175.52,52.3083018]
[1753991988149,0.03,175.53,175.52,41.28]
[1753991988883,0.68,175.53,175.45,17.46468397]
[1753991989050,0.03,175.53,175.52,11.0283018]
[1753991989390,0.03,175.53,175.52,52.3083018]
[1753991989961,12.42043078,175.53,175.48,26.0]
[1753991990179,0.74212898,175.53,175.49,52.2883018]
[1753991990380,1.39212898,175.53,175.51,11.0283018]
[1753991990583,0.03,175.53,175.52,52.2883018]
[1753991991975,0.03,175.53,175.52,41.26]
[1753991992387,0.03,175.53,175.52,52.2883018]
[1753991992896,1.39212898,175.53,175.52,41.26]
[1753991993490,0.03,175.53,175.52,52.2883018]
[1753991993693,0.74212898,175.53,175.52,52.2883018]
[1753991994191,0.03,175.53,175.52,52.9683018]
[1753991994398,1.39212898,175.53,175.49,11.0283018]
[1753991994583,0.65,175.52,175.48,11.0283018]
[1753991994791,0.71221013,175.51,175.49,41.26]
[1753991994973,0.65,175.52,175.49,41.26]
[1753991995172,1.36216955,175.52,175.48,11.0283018]
[1753991995369,17.43786888,175.52,175.46,26.0]
[1753991995571,0.65,175.51,175.47,41.26]
[1753991995783,0.71225071,175.5,175.48,11.0283018]
[1753991995972,16.7553365,175.53,175.49,0.68]
[1753991995973,0.71216955,175.52,175.49,0.68]
[1753991996288,0.03,175.53,175.51,11.0283018]
[1753991996490,0.03,175.53,175.52,11.0283018]
[1753991997272,0.03,175.53,175.51,0.74]
[1753991997273,0.68,175.53,175.51,0.06]
[1753991997499,11.77043078,175.53,175.52,41.26]
[1753991997697,0.74212898,175.53,175.52,41.26]
[1753991998092,1.39212898,175.53,175.52,41.26]
[1753991998292,0.74212898,175.53,175.52,41.26]
[1753991998492,0.03,175.53,175.52,41.26]
[1753991999374,17.40533364,175.53,175.51,0.06]
[1753991999573,0.71216955,175.52,175.51,0.06]
[1753991999899,0.68,175.53,175.51,41.32]
[1753992000102,1.36216955,175.52,175.51,41.32]
[1753992000299,12.39047135,175.52,175.51,0.06]
[1753992001404,18.08782777,175.52,175.51,0.06]
[1753992001572,34.87251174,175.52,175.51,0.06]
[1753992002079,42.78468397,175.5,175.49,0.06]
[1753992002284,26.0,175.5,175.49,41.32]
[1753992002472,0.71225071,175.5,175.49,52.3483018]
[1753992002674,5.69737866,175.52,175.49,0.06]
[1753992002992,0.71221013,175.51,175.5,41.3]
[1753992003196,7.47236998,175.51,175.5,41.3]
[1753992003368,13.82005102,175.51,175.5,41.3]
[1753992003569,6.40989117,175.51,175.5,41.3]
[1753992003988,6.40989117,175.51,175.49,0.06]
[1753992003989,13.17005102,175.51,175.49,0.06]
[1753992004172,7.41015985,175.5,175.49,0.06]
[1753992005334,7.41015985,175.5,175.41,14.8009071]
[1753992005335,30.95500367,175.5,175.4,0.7]
[1753992005491,5.69930468,175.46,175.37,0.7]
[1753992005692,1.39245369,175.45,175.38,48.08015985]
[1753992006189,6.76015985,175.42,175.38,48.08015985]
[1753992006390,0.71261615,175.41,175.39,0.7]
[1753992006589,6.76015985,175.43,175.39,0.7]
[1753992006794,0.71257553,175.42,175.39,0.7]
[1753992007025,0.71257553,175.42,175.38,41.32]
[1753992007234,11.02675475,175.4,175.39,41.3]
[1753992007408,16.72800902,175.4,175.39,41.3]
[1753992007606,0.7124943,175.44,175.39,53.02675475]
[1753992007796,20.10267135,175.51,175.43,11.02675475]
[1753992007797,0.71233188,175.48,175.43,11.02675475]
[1753992007998,0.71233188,175.48,175.45,11.02675475]
[1753992008197,6.41099337,175.48,175.45,11.02675475]
[1753992008394,0.71233188,175.48,175.46,11.02675475]
[1753992008593,6.41113617,175.48,175.46,11.02675475]
[1753992009007,6.41106444,175.48,175.46,11.02675475]
[1753992009205,0.71233188,175.48,175.46,11.02675475]
[1753992009413,0.71233188,175.48,175.47,11.02675475]
[1753992009712,0.71225071,175.5,175.47,11.72675475]
[1753992009908,6.40990838,175.51,175.49,11.02675475]
[1753992010098,11.02675475,175.5,175.49,41.32]
[1753992010305,11.70675475,175.5,175.49,41.32]
[1753992010705,0.68,175.5,175.49,41.32]
[1753992010901,11.70675475,175.5,175.49,41.32]
[1753992011126,17.40476044,175.5,175.49,41.32]
[1753992011326,18.11701115,175.5,175.49,41.32]
[1753992011500,18.11701115,175.5,175.46,41.34]
[1753992011695,11.02675475,175.47,175.46,41.34]
[1753992012642,11.70675475,175.47,175.46,41.34]
[1753992012838,12.41912723,175.47,175.4,0.7]
[1753992013042,1.39237248,175.47,175.41,41.32]
[1753992013220,11.02675475,175.43,175.41,41.32]
[1753992013428,11.73933028,175.42,175.38,0.7]
[1753992013818,11.02675475,175.41,175.38,0.7]
[1753992014017,11.02675475,175.4,175.39,41.32]
[1753992014239,0.71253491,175.43,175.39,41.32]
[1753992014425,1.39253491,175.43,175.39,41.32]
[1753992014631,11.02675475,175.41,175.39,42.02]
[1753992014841,0.71265678,175.4,175.39,41.32]
[1753992015152,0.71265678,175.4,175.39,42.02]
[1753992015515,0.71265678,175.4,175.39,41.32]
[1753992015735,0.71265678,175.4,175.39,42.02]
[1753992015922,0.71265678,175.4,175.39,41.32]
[1753992016739,11.02675475,175.41,175.39,42.02]
[1753992016912,0.71265678,175.4,175.39,42.02]
[1753992017108,0.68,175.45,175.39,42.02]
[1753992017109,0.71245369,175.45,175.39,53.04675475]
[1753992017415,6.41216702,175.45,175.41,11.02675475]
[1753992017639,6.41216702,175.45,175.41,11.72675475]
[1753992017831,17.43892177,175.45,175.41,0.7]
[1753992018031,11.02675475,175.44,175.41,0.7]
[1753992018353,11.02675475,175.42,175.39,0.06]
[1753992018545,11.02675475,175.42,175.4,41.3]
[1753992018913,11.73928966,175.43,175.41,0.7]
[1753992019311,0.71253491,175.43,175.42,0.7]
[1753992019622,11.02675475,175.45,175.4,53.02675475]
[1753992019825,0.7124943,175.44,175.41,0.7]
[1753992020148,16.78468397,175.5,175.4,52.32675475]
[1753992020149,6.41071685,175.49,175.43,11.02675475]
[1753992020345,6.41071685,175.49,175.44,41.98]
[1753992020346,0.71229129,175.49,175.44,41.98]
[1753992020652,0.71233188,175.48,175.45,42.0]
[1753992020819,0.71233188,175.48,175.45,53.02675475]
[1753992021014,0.71229129,175.49,175.45,53.02675475]
[1753992021214,0.71229129,175.49,175.46,11.72675475]
[1753992021745,0.71229129,175.49,175.47,11.72675475]
[1753992022321,0.71225071,175.5,175.48,0.7]
[1753992022521,0.71225071,175.5,175.49,41.3]
[1753992022746,0.71221013,175.51,175.49,11.72675475]
[1753992022946,0.71225071,175.5,175.47,41.3]
[1753992023119,11.02675475,175.48,175.47,41.3]
[1753992023451,16.72540986,175.48,175.47,41.3]
[1753992023647,5.69840689,175.49,175.47,41.3]
[1753992023951,0.71233188,175.48,175.47,41.3]
[1753992024117,11.73908663,175.48,175.47,41.3]
[1753992024943,11.73908663,175.48,175.44,41.3]
[1753992025150,11.02675475,175.47,175.44,41.3]
[1753992025448,0.71241308,175.46,175.44,41.3]
[1753992026022,0.71241308,175.46,175.44,42.0]
[1753992026632,0.71241308,175.46,175.44,41.3]
[1753992027121,6.41174304,175.46,175.44,41.3]
[1753992027327,0.71241308,175.46,175.44,41.3]
[1753992027940,0.71241308,175.46,175.44,42.0]
[1753992028135,0.71229129,175.49,175.45,11.72675475]
[1753992028440,0.71229129,175.49,175.46,11.02675475]
[1753992028744,0.71229129,175.49,175.47,52.30675475]
[1753992029059,0.71229129,175.49,175.47,41.98]
[1753992029227,0.71225071,175.5,175.47,41.98]
[1753992029726,6.41029136,175.5,175.47,41.28]
[1753992029944,6.41029136,175.5,175.48,0.7]
[1753992030147,11.02675475,175.49,175.43,16.72692025]
[1753992030349,11.02675475,175.46,175.44,41.28]
[1753992030732,11.73920844,175.45,175.4,0.7]
[1753992031047,11.02675475,175.42,175.41,41.28]
[1753992031355,16.72735901,175.42,175.41,41.28]
[1753992031550,11.02675475,175.42,175.41,41.28]
[1753992032451,17.43894067,175.45,175.41,41.98]
[1753992032652,0.71245369,175.45,175.42,0.7]
[1753992032852,0.71245369,175.45,175.43,0.7]
[1753992033230,0.71237248,175.47,175.44,41.98]
[1753992033525,0.71237248,175.47,175.41,0.7]
[1753992033526,11.02675475,175.45,175.41,0.7]
[1753992033731,11.02675475,175.42,175.38,0.7]
[1753992033965,0.71261615,175.41,175.4,41.28]
[1753992034750,11.02675475,175.42,175.4,41.28]
[1753992034944,11.7393709,175.41,175.39,41.34]
[1753992036052,17.44038124,175.41,175.39,41.34]
[1753992036355,0.71261615,175.41,175.39,41.34]
[1753992036548,31.70003701,175.44,175.4,0.7]
[1753992036733,0.71245369,175.45,175.42,11.02675475]
[1753992036933,0.71245369,175.45,175.39,0.06]
[1753992036934,11.02675475,175.43,175.39,0.06]
[1753992037240,11.73933028,175.42,175.4,41.34]
[1753992037442,0.71257553,175.42,175.4,42.04]
[1753992037648,11.73933028,175.42,175.4,41.34]
[1753992038450,0.71257553,175.42,175.4,42.04]
[1753992039160,7.09319979,175.42,175.39,41.4444]
[1753992039331,11.02675475,175.4,175.39,41.4444]
[1753992040129,11.70675475,175.4,175.39,41.4444]
[1753992040342,17.40800902,175.4,175.39,41.4444]
[1753992040538,11.73941153,175.4,175.39,0.1044]
[1753992040750,0.71265678,175.4,175.39,41.4444]
[1753992042362,0.71265678,175.4,175.39,42.1444]
[1753992042546,0.71261615,175.41,175.39,42.1444]
[1753992042747,0.71257553,175.42,175.4,0.7]
[1753992043045,7.72523784,175.51,175.41,11.72675475]
[1753992043046,5.69994096,175.45,175.41,11.72675475]
[1753992043234,11.02675475,175.42,175.39,0.1044]
[1753992043435,11.7393709,175.41,175.4,41.34]
[1753992043635,0.71261615,175.41,175.4,41.34]
[1753992044457,6.4135454,175.41,175.4,41.34]
[1753992044856,0.71261615,175.41,175.4,41.34]
[1753992045058,17.43926214,175.44,175.4,42.04]
[1753992045242,6.41250739,175.44,175.4,42.04]
[1753992045438,17.43926214,175.44,175.4,42.04]
[1753992045663,11.02675475,175.43,175.39,0.1044]
[1753992045839,11.02675475,175.4,175.39,0.1044]
[1753992046041,23.22010454,175.4,175.39,0.1044]
[1753992046354,16.78468397,175.39,175.38,0.06]
[1753992046562,43.4984266,175.39,175.29,0.7]
[1753992046734,43.4984266,175.39,175.31,41.4]
[1753992046735,11.02675475,175.34,175.31,41.4]
[1753992047444,11.7396554,175.34,175.31,41.4]
[1753992047764,0.71290065,175.34,175.31,41.4]
[1753992047965,11.7396554,175.34,175.31,41.4]
[1753992048354,11.7396554,175.34,175.29,0.7]
[1753992048355,18.1228606,175.34,175.29,0.7]
[1753992048676,18.1228606,175.34,175.33,1e-08]
[1753992048677,58.10348796,175.34,175.33,1e-08]
[1753992048974,16.78468397,175.33,175.28,0.06]
[1753992049277,11.02675475,175.29,175.28,0.06]
[1753992050338,11.02675475,175.27,175.24,40.28491858]
[1753992050561,0.71322606,175.26,175.24,40.28491858]
[1753992051465,0.71322606,175.26,175.24,51.31167333]
[1753992051763,0.71318537,175.27,175.24,57.01807902]
[1753992051970,0.71318537,175.27,175.26,11.02675475]
[1753992052258,14.00269786,175.31,175.26,11.02675475]
[1753992052259,0.71310399,175.29,175.26,11.02675475]
[1753992052467,0.71310399,175.29,175.27,11.72675475]
[1753992053163,0.71302264,175.31,175.28,11.72675475]
[1753992053382,0.71302264,175.31,175.29,11.02675475]
[1753992053862,0.71302264,175.31,175.28,41.34]
[1753992054259,0.71302264,175.31,175.28,42.04]
[1753992054564,0.71294131,175.33,175.3,11.02675475]
[1753992054767,37.73957409,175.36,175.31,11.02675475]
[1753992054947,22.76632909,175.36,175.31,11.02675475]
[1753992055263,11.02675475,175.32,175.28,41.32]
[1753992055472,0.71302264,175.31,175.28,41.32]
[1753992055647,0.71302264,175.31,175.28,53.04675475]
[1753992055847,11.73969606,175.33,175.28,52.34675475]
[1753992056057,11.73969606,175.33,175.28,53.04675475]
[1753992056368,0.71294131,175.33,175.3,11.02675475]
[1753992056540,0.71294131,175.33,175.31,11.02675475]
[1753992056740,0.71298197,175.32,175.3,11.72675475]
[1753992057173,0.71294131,175.33,175.31,11.72675475]
[1753992057345,0.71294131,175.33,175.31,11.02675475]
[1753992057551,11.73969606,175.33,175.29,11.02675475]
[1753992057751,0.71294131,175.33,175.29,11.72675475]
[1753992057950,0.71294131,175.33,175.3,0.7]
[1753992058172,0.71294131,175.33,175.3,11.72675475]
[1753992058460,0.71294131,175.33,175.31,41.32]
[1753992058856,0.71294131,175.33,175.3,11.72675475]
[1753992059148,0.71294131,175.33,175.31,41.32]
[1753992059844,0.68,175.35,175.31,41.32]
[1753992059845,0.71285999,175.35,175.32,11.72675475]
[1753992060044,6.41580098,175.35,175.32,11.72675475]
[1753992060355,31.03819972,175.4,175.31,41.32]
[1753992060356,0.71269741,175.39,175.34,22.0535095]
[1753992060558,4.47897384,175.48,175.41,26.0]
[1753992060786,0.71233188,175.48,175.47,11.02675475]
[1753992060959,0.03,175.49,175.47,52.58675475]
[1753992061148,0.03,175.51,175.5,26.0]
[1753992061554,0.03,175.51,175.5,53.81143872]
[1753992061752,0.03,175.53,175.51,16.78468397]
[1753992061968,0.03,175.53,175.52,52.91533985]
[1753992062150,0.03,175.53,175.52,58.67326907]
[1753992062361,0.2,175.58,175.54,42.78468397]
[1753992062546,0.2,175.58,175.55,16.78468397]
[1753992062750,0.2,175.58,175.55,38.83819347]
[1753992062964,0.03,175.6,175.55,38.83819347]
[1753992062965,0.03,175.6,175.57,37.02675475]
[1753992063181,0.03,175.6,175.59,27.81143872]
[1753992063552,0.03,175.6,175.59,11.02675475]
[1753992063752,0.03,175.6,175.59,16.72183989]
[1753992064266,0.03,175.62,175.61,42.78468397]
[1753992064574,0.2,175.64,175.61,37.31457755]
[1753992064780,0.2,175.64,175.63,15.51272852]
[1753992064981,0.2,175.64,175.62,41.66]
[1753992065181,0.89,175.64,175.6,15.51272852]
[1753992065363,0.69,175.63,175.61,41.66]
[1753992065562,0.2,175.64,175.63,16.78468397]
[1753992065762,0.2,175.64,175.63,37.99120056]
[1753992066382,0.2,175.64,175.63,42.78468397]
[1753992066555,0.2,175.64,175.56,15.80050307]
[1753992066556,16.40272852,175.64,175.56,15.80050307]
[1753992066751,15.51272852,175.61,175.53,0.28808384]
[1753992067054,0.69,175.63,175.44,33.42198632]
[1753992067055,15.51272852,175.55,175.51,15.800503]
[1753992067257,15.51272852,175.52,175.47,15.51272852]
[1753992067456,15.51272852,175.5,175.44,15.51272852]
[1753992067660,15.51272852,175.49,175.44,15.51272852]
[1753992067883,15.51272852,175.5,175.44,15.51272852]
[1753992068068,0.69,175.49,175.44,41.51272852]
[1753992068395,5.6967073,175.54,175.46,15.51272852]
[1753992068584,15.51272852,175.51,175.46,57.35272852]
[1753992068791,16.20272852,175.5,175.45,15.51272852]
[1753992068960,1.40229129,175.49,175.34,0.28913867]
[1753992069164,15.51272852,175.47,175.42,15.51272852]
[1753992069358,0.69,175.47,175.43,15.51272852]
[1753992069559,16.9151416,175.46,175.41,15.51272852]
[1753992069857,1.40241308,175.46,175.42,15.51272852]
[1753992070060,6.41173287,175.46,175.41,15.51272852]
[1753992070257,0.69,175.45,175.4,15.51272852]
[1753992070482,15.51272852,175.43,175.38,15.51272852]
[1753992070656,1.4024943,175.44,175.41,15.51272852]
[1753992070657,0.7124943,175.44,175.41,15.51272852]
[1753992070859,15.51272852,175.42,175.33,17.128664]
[1753992071183,15.51272852,175.39,175.34,21.21591759]
[1753992071359,16.22534467,175.41,175.36,15.57272852]
[1753992071762,15.51272852,175.38,175.36,0.06]
[1753992071961,1.40265678,175.4,175.36,0.06]
[1753992072258,0.71245369,175.45,175.39,15.51272852]
[1753992072461,1.40241308,175.46,175.44,15.51272852]
[1753992072701,1.40241308,175.46,175.45,15.51272852]
[1753992072702,0.69,175.46,175.45,15.51272852]
[1753992072856,0.69,175.46,175.43,15.51272852]
[1753992073056,0.71245369,175.45,175.36,16.84468397]
[1753992073261,0.71245369,175.45,175.43,15.51272852]
[1753992073462,0.71245369,175.45,175.36,43.1342772]
[1753992073463,0.69,175.45,175.44,15.51272852]
[1753992073890,0.71233188,175.48,175.44,15.51272852]
[1753992074092,0.69,175.47,175.39,42.04]
[1753992074274,0.71241308,175.46,175.44,15.51272852]
[1753992074587,0.69,175.45,175.44,15.51272852]
[1753992075081,0.71233188,175.48,175.44,15.51272852]
[1753992075298,0.71233188,175.48,175.39,48.03074945]
[1753992075501,0.71229129,175.49,175.47,15.51272852]
[1753992075668,0.69,175.5,175.48,15.51272852]
[1753992075863,0.71216955,175.52,175.49,15.51272852]
[1753992076084,0.71221013,175.51,175.44,15.51272852]
[1753992076281,0.71221013,175.51,175.45,42.04]
[1753992076673,0.71221013,175.51,175.44,15.51272852]
[1753992076864,0.71216955,175.52,175.44,5.69991781]
[1753992077177,0.69,175.51,175.49,15.51272852]
[1753992077375,0.71216955,175.52,175.5,15.51272852]
[1753992077572,1.40208841,175.54,175.51,15.51272852]
[1753992077774,63.31140045,175.59,175.53,15.51272852]
[1753992077775,0.71204784,175.55,175.53,15.51272852]
[1753992077976,16.20272852,175.54,175.38,10.0]
[1753992078177,0.71212898,175.53,175.5,15.51272852]
[1753992078371,0.69,175.52,175.45,26.0]
[1753992078568,0.69,175.52,175.49,15.51272852]
[1753992079187,0.71221013,175.51,175.5,15.51272852]
[1753992079470,0.69,175.52,175.5,15.51272852]
[1753992079677,0.69,175.51,175.46,5.69904755]
[1753992079904,26.0,175.55,175.5,15.51272852]
[1753992079905,0.71212898,175.53,175.5,15.51272852]
[1753992080078,0.69,175.59,175.52,15.51272852]
[1753992080401,0.71192618,175.58,175.56,15.51272852]
[1753992080623,0.7118451,175.6,175.57,15.51272852]
[1753992080797,0.7118451,175.6,175.51,42.78468397]
[1753992080798,1.40188564,175.59,175.55,15.51272852]
[1753992080975,6.40604948,175.62,175.58,15.51272852]
[1753992081294,5.69476082,175.6,175.56,15.51272852]
[1753992081599,0.71180456,175.61,175.59,15.51272852]
[1753992081799,0.7117235,175.63,175.6,15.51272852]
[1753992081985,27.4017235,175.63,175.52,88.19365525]
[1753992082300,33.09553762,175.63,175.6,15.51272852]
[1753992082488,33.09555228,175.63,175.6,15.51272852]
[1753992082692,0.69,175.62,175.52,73.95026419]
[1753992082874,0.71180456,175.61,175.58,15.51272852]
[1753992083078,26.69,175.6,175.52,56.87735077]
[1753992083278,1.40188564,175.59,175.55,15.51272852]
[1753992083478,15.51272852,175.57,175.48,26.0]
[1753992083785,0.71200729,175.56,175.53,15.51272852]
[1753992084488,0.71200729,175.56,175.54,15.51272852]
[1753992084669,16.22477636,175.55,175.49,15.51272852]
[1753992084872,16.22477636,175.55,175.47,42.08]
[1753992084873,0.69,175.54,175.47,15.51272852]
[1753992085102,15.51272852,175.49,175.44,15.51272852]
[1753992085270,15.51272852,175.5,175.45,15.51272852]
[1753992085474,16.20272852,175.52,175.47,15.51272852]
[1753992085699,0.71212898,175.53,175.47,15.51272852]
[1753992085700,0.71212898,175.53,175.51,15.51272852]
[1753992085882,5.69545553,175.58,175.52,15.51272852]
[1753992086082,0.71196673,175.57,175.54,15.51272852]
[1753992086404,1.40196673,175.57,175.48,0.28865089]
[1753992086579,5.69605832,175.56,175.53,15.51272852]
[1753992086776,1.40204784,175.55,175.52,15.51272852]
[1753992086997,15.51272852,175.53,175.46,0.06]
[1753992087176,15.51272852,175.49,175.46,0.06]
[1753992087375,1.40216955,175.52,175.47,15.51272852]
[1753992087602,1.40216955,175.52,175.46,0.06]
[1753992087603,0.71208841,175.54,175.5,15.51272852]
[1753992087784,15.51272852,175.52,175.46,0.06]
[1753992087992,16.91493865,175.51,175.46,15.57272852]
[1753992088182,0.69,175.5,175.48,15.51272852]
[1753992088382,0.71208841,175.54,175.49,15.51272852]
[1753992088584,1.40212898,175.53,175.49,15.51272852]
[1753992088783,15.51272852,175.51,175.46,15.57272852]
[1753992088985,0.71225071,175.5,175.46,0.06]
[1753992089182,0.71216955,175.52,175.49,15.51272852]
[1753992089483,0.71208841,175.54,175.51,15.51272852]
[1753992089682,0.71208841,175.54,175.46,5.75915792]
[1753992089683,0.71208841,175.54,175.52,15.51272852]
[1753992089880,1.40196673,175.57,175.53,15.51272852]
[1753992090084,1.40196673,175.57,175.48,68.14]
[1753992090085,1.40196673,175.57,175.54,15.51272852]
[1753992090310,0.69,175.56,175.49,26.0]
[1753992090616,0.69,175.56,175.5,15.51272852]
[1753992090617,0.71204784,175.55,175.5,15.51272852]
[1753992090782,16.20272852,175.54,175.46,31.75925295]
[1753992090981,1.40212898,175.53,175.47,15.51272852]
[1753992091187,1.40212898,175.53,175.46,9.16]
[1753992091188,1.40212898,175.53,175.49,15.51272852]
[1753992091384,15.51272852,175.5,175.46,0.06]
[1753992091596,1.40229129,175.49,175.46,0.06]
[1753992091802,16.91501981,175.49,175.46,0.06]
[1753992091986,0.69,175.48,175.46,0.06]
[1753992092197,0.71233188,175.48,175.46,0.06]
[1753992092519,15.51272852,175.47,175.46,0.06]
[1753992092681,22.61408088,175.47,175.36,0.06]
[1753992093012,15.51272852,175.44,175.39,15.51272852]
[1753992093208,0.71253491,175.43,175.39,15.51272852]
[1753992093506,15.51272852,175.42,175.36,0.06]
[1753992093690,16.91526343,175.43,175.39,15.51272852]
[1753992093888,0.71253491,175.43,175.4,15.51272852]
[1753992094081,16.22518221,175.45,175.4,15.51272852]
[1753992094279,0.71245369,175.45,175.4,15.51272852]
[1753992094499,15.51272852,175.42,175.36,26.06]
[1753992094811,5.70059137,175.43,175.37,15.51272852]
[1753992094983,15.51272852,175.42,175.37,21.21489041]
[1753992095187,16.92534467,175.41,175.36,21.27520381]
[1753992095403,15.51272852,175.42,175.37,15.51272852]
[1753992095699,0.7124943,175.44,175.39,15.51272852]
[1753992095900,0.7,175.43,175.39,15.51272852]
[1753992096096,0.7124943,175.44,175.41,15.51272852]
[1753992096298,0.7124943,175.44,175.42,15.51272852]
[1753992096606,0.71245369,175.45,175.43,15.51272852]
[1753992096796,0.71241308,175.46,175.43,15.51272852]
[1753992097316,0.7,175.45,175.43,15.51272852]
[1753992097508,0.71241308,175.46,175.43,15.51272852]
[1753992097803,0.71245369,175.45,175.43,15.51272852]
[1753992098112,0.71245369,175.45,175.38,62.11666552]
[1753992098113,0.7,175.45,175.42,15.51272852]
[1753992098298,26.0,175.4,175.36,0.06]
[1753992098490,0.7,175.4,175.36,21.27515785]
[1753992098693,0.71265678,175.4,175.38,15.51272852]
[1753992098897,0.71257553,175.42,175.39,15.51272852]
[1753992099099,0.71253491,175.43,175.41,15.51272852]
[1753992099313,0.7124943,175.44,175.41,15.51272852]
[1753992100016,0.7124943,175.44,175.39,5.70151992]
[1753992100221,1.4124943,175.44,175.41,15.51272852]
[1753992100412,0.7,175.43,175.39,15.51272852]
[1753992100612,0.71257553,175.42,175.39,15.51272852]
[1753992100932,16.21272852,175.41,175.37,15.51272852]
[1753992101110,0.71257553,175.42,175.38,15.51272852]
[1753992101904,0.71257553,175.42,175.37,5.70222355]
[1753992102109,1.41257553,175.42,175.37,5.70222355]
[1753992102318,21.92595997,175.42,175.37,15.51272852]
[1753992102503,16.21272852,175.41,175.36,15.57272852]
[1753992102826,16.2253853,175.4,175.36,0.06]
[1753992103030,15.51272852,175.38,175.36,0.06]
[1753992103208,16.22550721,175.37,175.36,0.06]
[1753992103611,16.92550721,175.37,175.36,0.06]
[1753992104120,0.71277869,175.37,175.36,0.06]
[1753992104330,0.71269741,175.39,175.36,0.06]
[1753992105011,16.21272852,175.38,175.36,0.06]
[1753992105211,1.41277869,175.37,175.36,0.06]
[1753992105732,0.7,175.4,175.36,15.57272852]
[1753992105905,0.71269741,175.39,175.36,15.57272852]
[1753992106429,0.71269741,175.39,175.37,15.51272852]
[1753992106637,0.71269741,175.39,175.36,0.06]
[1753992106839,1.4124943,175.44,175.41,26.0]
[1753992107139,0.7124943,175.44,175.41,26.0]
[1753992107325,7.1124487,175.44,175.42,15.51272852]
[1753992107634,7.1124487,175.44,175.37,5.76192599]
[1753992107932,15.51272852,175.42,175.4,26.0]
[1753992108234,16.92534467,175.41,175.36,0.06]
[1753992108411,15.51272852,175.39,175.36,0.06]
[1753992108615,0.71273805,175.38,175.36,0.06]